bitfinex-derivatives/quotes_BTCF0:USTF0_20250330
["timestamp","ask_amount","ask_price","bid_price","bid_amount"]
[1743349660625,0.12162541,82897.0,82896.0,0.1206661]
[1743349661115,0.12162541,82897.0,82896.0,0.1518661]
[1743349662618,0.12162541,82897.0,82896.0,0.1528661]
[1743349664628,0.12162541,82897.0,82896.0,0.1578661]
[1743349666829,0.12662541,82897.0,82896.0,0.1578661]
[1743349668128,0.12662541,82897.0,82896.0,0.1909661]
[1743349668429,0.12662541,82897.0,82896.0,0.1919261]
[1743349670228,0.12662541,82897.0,82896.0,0.1588261]
[1743349670434,0.12662541,82897.0,82896.0,0.1578661]
[1743349671630,0.12662541,82897.0,82896.0,0.1585061]
[1743349677425,0.24706541,82897.0,82896.0,0.1585061]
[1743349677628,0.12662541,82897.0,82896.0,0.1585061]
[1743349677826,0.12640001,82897.0,82896.0,0.1585061]
[1743349679438,0.24706541,82897.0,82896.0,0.1585061]
[1743349680334,0.12640001,82897.0,82896.0,0.1585061]
[1743349682637,0.00596001,82897.0,82896.0,0.1585061]
[1743349682945,0.10811725,82903.0,82902.0,0.1206581]
[1743349683145,0.10875725,82903.0,82902.0,0.4820981]
[1743349683342,0.12044,82911.0,82906.0,0.1206523]
[1743349683543,0.14555957,82907.0,82906.0,0.1214523]
[1743349683744,0.00174099,82907.0,82906.0,0.1214523]
[1743349683938,0.00018099,82907.0,82906.0,0.1859523]
[1743349685140,0.18072323,82909.0,82906.0,0.1859523]
[1743349685141,0.18072323,82909.0,82908.0,0.1206493]
[1743349685335,0.18072323,82909.0,82908.0,0.1214093]
[1743349687547,0.1204,82918.0,82917.0,0.1206362]
[1743349687738,0.12116,82918.0,82917.0,0.1213962]
[1743349687943,0.1204,82918.0,82917.0,0.1213962]
[1743349688144,0.12116,82918.0,82917.0,0.1213962]
[1743349688339,0.12116,82918.0,82917.0,0.1833962]
[1743349690652,0.12116,82918.0,82917.0,0.1957916]
[1743349691148,0.1213948,82918.0,82917.0,0.1957916]
[1743349691541,0.1844948,82918.0,82917.0,0.1957916]
[1743349694041,0.06386,82918.0,82917.0,0.1957916]
[1743349694953,0.06386,82918.0,82917.0,0.2270916]
[1743349695548,0.1844948,82918.0,82917.0,0.2270916]
[1743349695956,0.06386,82918.0,82917.0,0.2270916]
[1743349696249,0.03176,82918.0,82917.0,0.2270916]
[1743349696457,0.00076,82918.0,82917.0,0.2270916]
[1743349696650,0.1532252,82925.0,82923.0,0.1206275]
[1743349696844,0.2744661,82924.0,82923.0,0.1214675]
[1743349697156,0.2744661,82924.0,82923.0,1.6842675]
[1743349697558,0.2736261,82924.0,82923.0,1.6842675]
[1743349697856,0.1204,82924.0,82923.0,1.6842675]
[1743349698048,0.120622,82927.0,82926.0,0.1206217]
[1743349698249,0.241782,82927.0,82926.0,0.1213817]
[1743349698658,0.12116,82927.0,82926.0,0.1213817]
[1743349698956,0.13035681,82927.0,82926.0,0.1213817]
[1743349699354,0.12116,82927.0,82926.0,0.1213817]
[1743349699754,0.2417817,82927.0,82926.0,0.1213817]
[1743349699942,0.2720817,82927.0,82926.0,0.1213817]
[1743349700549,0.3035817,82927.0,82926.0,0.1213817]
[1743349700749,0.12116,82927.0,82926.0,0.1213817]
[1743349702258,0.2417817,82927.0,82926.0,0.1213817]
[1743349703456,0.25073506,82927.0,82926.0,0.1213817]
[1743349703963,0.13037506,82927.0,82926.0,0.1213817]
[1743349704260,0.16107506,82927.0,82926.0,0.1213817]
[1743349706460,0.13037506,82927.0,82926.0,0.1213817]
[1743349706660,0.00975336,82927.0,82926.0,0.1213817]
[1743349706849,0.0008,82927.0,82926.0,0.1213817]
[1743349708758,0.1214217,82927.0,82926.0,0.1213817]
[1743349709155,0.1214217,82927.0,82926.0,0.1206217]
[1743349709354,0.1214217,82927.0,82926.0,0.1213817]
[1743349710963,0.0008,82927.0,82926.0,0.1213817]
[1743349711667,0.1214217,82927.0,82926.0,0.1213817]
[1743349712266,0.1544217,82927.0,82926.0,0.1213817]
[1743349712652,0.0338,82927.0,82926.0,0.1213817]
[1743349712857,0.0008,82927.0,82926.0,1.6213817]
[1743349716068,0.0008,82927.0,82926.0,1.6528817]
[1743349716864,0.0008,82927.0,82926.0,1.6836817]
[1743349718468,0.0008,82927.0,82926.0,1.7148817]
[1743349722773,0.0008,82927.0,82926.0,1.7198817]
[1743349724061,0.0329,82934.0,82926.0,1.7198817]
[1743349724062,0.12032,82939.0,82928.0,0.0603099]
[1743349724265,0.14551563,82935.0,82934.0,0.1206115]
[1743349724471,0.14551563,82935.0,82934.0,0.1216515]
[1743349725162,0.14551563,82935.0,82934.0,0.1862515]
[1743349726568,0.14551563,82935.0,82934.0,0.5470515]
[1743349728678,0.15051563,82935.0,82934.0,0.5470515]
[1743349730982,0.00608,82935.0,82934.0,0.5470515]
[1743349731181,0.005,82935.0,82934.0,0.5470515]
[1743349732775,0.12032,82943.0,82942.0,0.1205999]
[1743349732974,0.12132,82943.0,82942.0,0.1215999]
[1743349733273,0.001,82943.0,82942.0,0.1215999]
[1743349733473,0.12072,82948.0,82947.0,0.1205926]
[1743349733671,0.12136,82948.0,82947.0,0.1205926]
[1743349734084,0.15236,82948.0,82947.0,0.1855926]
[1743349735082,0.03204,82948.0,82947.0,0.1855926]
[1743349735282,0.15236,82948.0,82947.0,0.1855926]
[1743349735583,0.03204,82948.0,82947.0,0.1855926]
[1743349735777,0.03204,82948.0,82947.0,0.1865926]
[1743349735972,0.03204,82948.0,82947.0,1.6875926]
[1743349736179,0.03204,82948.0,82947.0,1.6865926]
[1743349738481,0.03204,82948.0,82947.0,1.6650079]
[1743349738892,0.5134312,82948.0,82947.0,0.001]
[1743349739087,0.1206043,82939.0,82938.0,0.21635944]
[1743349739280,0.1206043,82939.0,82938.0,0.21735944]
[1743349739281,0.6016843,82939.0,82938.0,0.21735944]
[1743349739480,0.6027643,82939.0,82938.0,0.33796514]
[1743349741391,0.6027643,82939.0,82938.0,0.35001324]
[1743349741998,0.6027643,82939.0,82938.0,0.1336538]
[1743349743588,0.12136,82939.0,82938.0,0.1336538]
[1743349744291,0.00108,82939.0,82938.0,1.7006538]
[1743349744487,0.14443563,82942.0,82941.0,0.1206013]
[1743349744694,0.14543563,82942.0,82941.0,0.1216013]
[1743349745088,0.001,82942.0,82941.0,0.1216013]
[1743349745288,0.001,82942.0,82941.0,1.6216013]
[1743349745491,0.0306,82943.0,82942.0,0.1205999]
[1743349745692,0.0316,82943.0,82942.0,0.1215999]
[1743349745891,0.0316,82943.0,82942.0,0.1885999]
[1743349746095,0.1521984,82943.0,82942.0,0.1885999]
[1743349746295,0.1840984,82943.0,82942.0,0.1885999]
[1743349746990,0.0635,82943.0,82942.0,0.1885999]
[1743349752488,0.0625,82943.0,82942.0,0.1885999]
[1743349754092,0.1830984,82943.0,82942.0,0.1885999]
[1743349754497,0.0635,82943.0,82942.0,0.1885999]
[1743349754997,0.0625,82943.0,82942.0,0.1885999]
[1743349762620,0.5438984,82943.0,82942.0,0.001]
[1743349762906,0.5445384,82943.0,82942.0,0.001]
[1743349764496,0.55685986,82943.0,82942.0,0.001]
[1743349764708,0.97555986,82943.0,82942.0,0.001]
[1743349765006,0.1205999,82942.0,82941.0,8e-05]
[1743349765199,0.1206013,82941.0,82940.0,0.21635944]
[1743349765405,0.2160013,82941.0,82940.0,0.21723944]
[1743349765599,0.2167213,82941.0,82940.0,0.21723944]
[1743349765803,0.2167213,82941.0,82940.0,0.00088]
[1743349766002,0.2167213,82941.0,82940.0,8e-05]
[1743349768215,0.3370013,82941.0,82940.0,8e-05]
[1743349769906,0.3370013,82941.0,82940.0,0.0008]
[1743349770108,0.3370013,82941.0,82940.0,8e-05]
[1743349770618,0.7557013,82941.0,82940.0,8e-05]
[1743349772916,0.90010039,82941.0,82940.0,8e-05]
[1743349774310,0.0603042,82937.0,82933.0,8e-05]
[1743349774510,0.4814115,82934.0,82933.0,8e-05]
[1743349774717,0.1206144,82932.0,82931.0,0.1529154]
[1743349774916,0.2416144,82932.0,82931.0,0.1536354]
[1743349775124,0.2416144,82932.0,82931.0,0.03302]
[1743349775422,0.3383144,82932.0,82931.0,0.04511398]
[1743349775916,0.3383144,82932.0,82931.0,0.07681398]
[1743349776314,0.3383144,82932.0,82931.0,0.19742988]
[1743349778114,0.3383144,82932.0,82931.0,0.07681398]
[1743349778626,0.3383144,82932.0,82931.0,0.19742988]
[1743349779119,0.3383144,82932.0,82931.0,0.19670988]
[1743349779715,0.6991144,82932.0,82931.0,0.19742988]
[1743349779919,0.6991144,82932.0,82931.0,0.19670988]
[1743349780119,0.3383144,82932.0,82931.0,0.19670988]
[1743349780315,0.6991144,82932.0,82931.0,0.19742988]
[1743349780514,0.6991144,82932.0,82931.0,0.19670988]
[1743349781021,0.3383144,82932.0,82931.0,0.19670988]
[1743349781225,0.6991144,82932.0,82931.0,0.19750988]
[1743349781530,0.6991144,82932.0,82931.0,0.19670988]
[1743349782035,0.6991144,82932.0,82931.0,0.19742988]
[1743349783622,0.6991144,82932.0,82931.0,0.07609398]
[1743349783826,0.6991144,82932.0,82931.0,0.19670988]
[1743349784036,0.6991144,82932.0,82931.0,0.19742988]
[1743349784916,0.6991144,82932.0,82931.0,0.07681398]
[1743349785117,0.1206217,82927.0,82926.0,0.00518088]
[1743349785321,0.0603158,82921.0,82918.0,0.21635944]
[1743349785527,0.1206333,82919.0,82918.0,0.35020979]
[1743349785725,0.1213533,82919.0,82918.0,0.35020979]
[1743349785918,0.1834533,82919.0,82918.0,0.35020979]
[1743349786836,0.1834533,82919.0,82918.0,0.13385035]
[1743349787014,0.1834533,82919.0,82918.0,0.13585035]
[1743349788329,0.1834533,82919.0,82918.0,0.20135035]
[1743349788628,0.1834533,82919.0,82918.0,0.20335035]
[1743349790425,0.1213533,82919.0,82918.0,0.20335035]
[1743349790621,0.00072,82919.0,82918.0,0.20335035]
[1743349790825,0.20470929,82928.0,82926.0,0.1206232]
[1743349790826,0.14439909,82928.0,82926.0,0.1206232]
[1743349791035,0.12080222,82927.0,82926.0,0.1206232]
[1743349791224,0.12144222,82927.0,82926.0,1.6213432]
[1743349791735,0.12144222,82927.0,82926.0,1.6879432]
[1743349795928,0.12080222,82927.0,82926.0,1.6879432]
[1743349796150,0.12152222,82927.0,82926.0,1.6879432]
[1743349797136,0.24176222,82927.0,82926.0,1.6879432]
[1743349798343,0.24176222,82927.0,82926.0,0.1879432]
[1743349800646,0.63546222,82927.0,82926.0,0.1879432]
[1743349801540,0.66906222,82927.0,82926.0,0.1879432]
[1743349802349,0.66906222,82927.0,82926.0,0.1929432]
[1743349804247,0.67406222,82927.0,82926.0,0.1929432]
[1743349804651,0.67406222,82927.0,82926.0,0.1922232]
[1743349806145,0.67406222,82927.0,82926.0,0.038]
[1743349806342,0.67406222,82927.0,82926.0,0.0686]
[1743349806547,0.67406222,82927.0,82926.0,0.038]
[1743349806946,0.67406222,82927.0,82926.0,0.005]
[1743349807344,0.67406222,82927.0,82926.0,0.1256232]
[1743349807547,0.67406222,82927.0,82926.0,0.1881232]
[1743349807745,0.67406222,82927.0,82926.0,0.2206432]
[1743349808347,0.81846131,82927.0,82926.0,0.2206432]
[1743349809342,0.81846131,82927.0,82926.0,0.06822]
[1743349809541,0.81846131,82927.0,82926.0,0.005]
[1743349810638,0.81846131,82927.0,82926.0,0.1256232]
[1743349811443,0.78556131,82927.0,82926.0,0.1900232]
[1743349812044,0.78556131,82927.0,82926.0,1.6907432]
[1743349813140,0.64116222,82927.0,82926.0,1.6907432]
[1743349814141,0.52092222,82927.0,82926.0,1.6907432]
[1743349814337,0.64116222,82927.0,82926.0,1.6907432]
[1743349816444,0.48732222,82927.0,82926.0,1.6907432]
[1743349816753,0.60756222,82927.0,82926.0,1.6907432]
[1743349817659,0.63806222,82927.0,82926.0,1.6907432]
[1743349818045,0.51744052,82927.0,82926.0,1.6907432]
[1743349818245,0.00590052,82927.0,82926.0,1.6907432]
[1743349820654,0.00518052,82927.0,82926.0,1.6907432]
[1743349821053,0.14461652,82930.0,82926.0,1.6907432]
[1743349821054,0.14461652,82930.0,82929.0,0.1206188]
[1743349821245,0.14461652,82930.0,82929.0,0.1213388]
[1743349822752,0.26523382,82930.0,82929.0,0.1213388]
[1743349823257,0.26595382,82930.0,82929.0,0.1213388]
[1743349823652,0.29795382,82930.0,82929.0,0.00072]
[1743349824150,0.1206217,82927.0,82926.0,0.005]
[1743349824340,0.2416217,82927.0,82926.0,0.00572]
[1743349824744,0.060316,82920.0,82911.0,0.1207238]
[1743349824950,0.4814362,82917.0,82912.0,0.1206424]
[1743349825150,0.4814362,82917.0,82909.0,0.0324]
[1743349825151,0.6023562,82917.0,82916.0,0.00064]
[1743349825358,0.6023562,82917.0,82916.0,0.1206377]
[1743349825749,0.6023562,82917.0,82916.0,0.1212777]
[1743349826258,0.6023562,82917.0,82916.0,0.00064]
[1743349826756,0.6023562,82917.0,82916.0,0.1242777]
[1743349827755,0.6023562,82917.0,82916.0,0.00364]
[1743349827958,0.6023562,82917.0,82916.0,0.005]
[1743349827959,0.74697272,82917.0,82916.0,0.005]
[1743349828258,0.74697272,82917.0,82916.0,0.004]
[1743349829044,1.16567272,82917.0,82916.0,0.004]
[1743349829551,0.80487272,82917.0,82916.0,0.004]
[1743349829855,1.16567272,82917.0,82916.0,0.004]
[1743349835755,1.0210562,82917.0,82916.0,0.004]
[1743349839265,1.03298854,82917.0,82916.0,0.004]
[1743349840056,0.91235234,82917.0,82907.0,0.00048247]
[1743349840260,0.91235234,82917.0,82888.0,0.00180962]
[1743349840261,0.1206624,82899.0,82896.0,0.005]
[1743349840467,0.6023824,82899.0,82898.0,0.22938709]
[1743349840765,0.2415824,82899.0,82898.0,0.22938709]
[1743349840965,0.2415824,82899.0,82898.0,0.21744384]
[1743349841166,0.2415824,82899.0,82898.0,0.33810774]
[1743349841463,0.2375824,82899.0,82898.0,0.33810774]
[1743349841767,0.2375824,82899.0,82898.0,0.21744384]
[1743349842164,0.2375824,82899.0,82898.0,0.34210774]
[1743349843760,0.2375824,82899.0,82898.0,0.1283039]
[1743349845369,0.2375824,82899.0,82898.0,1.6596039]
[1743349845954,0.2375824,82899.0,82898.0,0.00764]
[1743349846160,0.5983824,82899.0,82898.0,0.007]
[1743349846455,0.5983824,82899.0,82898.0,0.1283839]
[1743349846653,0.6302824,82899.0,82898.0,0.1614839]
[1743349846868,0.6616824,82899.0,82898.0,0.1614839]
[1743349848662,0.6616824,82899.0,82898.0,0.04082]
[1743349849172,0.6616824,82899.0,82898.0,0.0401]
[1743349849670,0.6616824,82899.0,82898.0,0.007]
[1743349849871,0.6616824,82899.0,82898.0,0.1276639]
[1743349850061,0.6616824,82899.0,82898.0,0.1283839]
[1743349851571,0.3008824,82899.0,82898.0,0.1283839]
[1743349852168,0.3008824,82899.0,82898.0,0.1621839]
[1743349855266,0.1487824,82899.0,82898.0,0.1621839]
[1743349855461,0.2375824,82899.0,82898.0,0.1621839]
[1743349855667,0.70656247,82899.0,82898.0,0.1621839]
[1743349855967,0.34576247,82899.0,82898.0,0.1621839]
[1743349856167,0.34576247,82899.0,82898.0,1.6621839]
[1743349856475,0.40956247,82899.0,82898.0,1.6621839]
[1743349856871,0.40956247,82899.0,82898.0,0.1621839]
[1743349857771,0.40956247,82899.0,82898.0,0.1926839]
[1743349857965,0.37846247,82899.0,82898.0,0.1926839]
[1743349858275,0.10890007,82899.0,82898.0,0.1926839]
[1743349858473,0.10890007,82899.0,82898.0,0.5534839]
[1743349858474,0.22838007,82899.0,82898.0,0.5534839]
[1743349858670,0.34904247,82899.0,82898.0,0.5534839]
[1743349858874,0.2408624,82899.0,82898.0,0.5534839]
[1743349859471,0.2416224,82899.0,82898.0,0.5534839]
[1743349860277,0.00076,82899.0,82898.0,0.5534839]
[1743349860474,0.10818007,82900.0,82899.0,0.1206624]
[1743349860678,0.14461652,82903.0,82902.0,0.1206581]
[1743349860981,0.09493652,82903.0,82902.0,0.1212981]
[1743349861473,0.09493652,82903.0,82902.0,1.6212981]
[1743349861675,0.09421652,82903.0,82902.0,1.6542981]
[1743349861881,0.09493652,82903.0,82902.0,1.6572981]
[1743349862080,0.09421652,82903.0,82902.0,1.6572981]
[1743349863382,0.00018088,82907.0,82906.0,0.1206523]
[1743349863572,0.00018088,82907.0,82906.0,0.1213323]
[1743349864171,0.00018088,82907.0,82906.0,0.1838323]
[1743349864673,0.00018088,82907.0,82906.0,0.1848323]
[1743349864871,0.00018088,82907.0,82906.0,0.1868323]
[1743349866173,0.12083168,82907.0,82906.0,0.1868323]
[1743349866678,0.48235168,82907.0,82906.0,0.00368]
[1743349866882,0.54385168,82907.0,82906.0,0.003]
[1743349867387,0.54385168,82907.0,82906.0,0.1242923]
[1743349869487,0.54385168,82907.0,82906.0,0.1575923]
[1743349870075,0.51226088,82907.0,82906.0,0.1575923]
[1743349870276,0.27211168,82907.0,82906.0,0.1575923]
[1743349870683,0.27211168,82907.0,82906.0,1.6902923]
[1743349870881,0.27139168,82907.0,82906.0,1.6902923]
[1743349871386,0.27211168,82907.0,82906.0,1.6902923]
[1743349871990,0.27211168,82907.0,82906.0,1.53694]
[1743349872192,0.27211168,82907.0,82906.0,0.00364]
[1743349872485,0.27211168,82907.0,82906.0,0.003]
[1743349872987,0.69081168,82907.0,82906.0,0.003]
[1743349873287,0.1206624,82899.0,82898.0,0.1206629]
[1743349873491,0.4822224,82899.0,82898.0,0.1213429]
[1743349873989,0.4822224,82899.0,82898.0,0.1528429]
[1743349874190,0.5472224,82899.0,82898.0,0.1856429]
[1743349874393,0.5472224,82899.0,82898.0,0.1528429]
[1743349874586,0.5472224,82899.0,82898.0,0.1598429]
[1743349880788,0.5472224,82899.0,82898.0,0.1902429]
[1743349881683,0.1864224,82899.0,82898.0,1.6902429]
[1743349881884,0.1856624,82899.0,82898.0,1.6902429]
[1743349882297,0.1863824,82899.0,82898.0,1.6902429]
[1743349884399,0.1856624,82899.0,82898.0,1.6902429]
[1743349885902,0.1864624,82899.0,82898.0,1.6902429]
[1743349889517,0.1864624,82899.0,82898.0,1.6598429]
[1743349889811,0.1864624,82899.0,82898.0,0.00768]
[1743349890704,0.6051624,82899.0,82898.0,0.00768]
[1743349890906,0.6051624,82899.0,82893.0,0.21680384]
[1743349890907,0.060334,82896.0,82893.0,0.21680384]
[1743349891103,0.1206697,82894.0,82893.0,0.21744384]
[1743349891306,0.4822697,82894.0,82893.0,0.21744384]
[1743349891508,0.5456697,82894.0,82893.0,0.00064]
[1743349891703,0.1206712,82893.0,82892.0,0.21680384]
[1743349891899,0.1213912,82893.0,82892.0,0.21744384]
[1743349892103,0.1847912,82893.0,82892.0,0.21744384]
[1743349892299,0.1797912,82893.0,82892.0,0.21744384]
[1743349892706,0.1757912,82893.0,82892.0,0.21744384]
[1743349892909,0.1757912,82893.0,82892.0,0.22244384]
[1743349893615,0.1757912,82893.0,82892.0,0.22744384]
[1743349895020,0.1757912,82893.0,82892.0,0.01064]
[1743349895315,0.1757912,82893.0,82892.0,0.005]
[1743349895616,0.1206726,82892.0,82891.0,0.00056256]
[1743349895817,0.1214726,82892.0,82891.0,0.00128256]
[1743349896017,0.1844726,82892.0,82891.0,0.00128256]
[1743349896319,0.5452726,82892.0,82891.0,0.00128256]
[1743349896517,0.5452726,82892.0,82891.0,0.00056256]
[1743349897112,0.5472726,82892.0,82891.0,0.00056256]
[1743349897511,0.5492726,82892.0,82891.0,0.00056256]
[1743349898115,0.5492726,82892.0,82891.0,0.00048256]
[1743349900623,0.0603416,82885.0,82881.0,0.0333]
[1743349900927,0.1206872,82882.0,82881.0,0.1546278]
[1743349901120,0.1214072,82882.0,82881.0,0.1876278]
[1743349901315,0.1214072,82882.0,82881.0,0.19960487]
[1743349901825,0.1853072,82882.0,82881.0,0.07891707]
[1743349902016,0.1853072,82882.0,82881.0,0.00164]
[1743349902216,0.120693,82878.0,82877.0,8e-05]
[1743349902515,0.119613,82878.0,82877.0,0.00072]
[1743349903222,0.184513,82878.0,82877.0,0.00072]
[1743349903424,0.183513,82878.0,82877.0,0.03592]
[1743349903822,0.183513,82878.0,82877.0,0.06822]
[1743349904327,0.183513,82878.0,82877.0,0.1889145]
[1743349904826,0.183513,82878.0,82877.0,0.1899145]
[1743349907421,0.183513,82878.0,82877.0,0.03692]
[1743349908831,0.183513,82878.0,82877.0,0.00472]
[1743349909130,0.183513,82878.0,82877.0,0.004]
[1743349910320,0.1206988,82874.0,82873.0,0.00018088]
[1743349910517,0.1207018,82872.0,82871.0,8e-05]
[1743349910719,0.1207032,82871.0,82869.0,0.01221425]
[1743349910920,0.1838032,82871.0,82870.0,0.03324]
[1743349911127,0.6025032,82871.0,82870.0,0.0326]
[1743349912330,0.1207047,82870.0,82869.0,0.01221425]
[1743349912534,0.1207061,82869.0,82868.0,0.03168]
[1743349912829,0.1873261,82869.0,82868.0,0.03232]
[1743349913026,0.1873261,82869.0,82868.0,0.03168]
[1743349913330,0.1873261,82869.0,82868.0,0.06348]
[1743349913633,0.1873261,82869.0,82868.0,0.1841876]
[1743349913933,0.1873261,82869.0,82868.0,0.06412]
[1743349914231,0.1873261,82869.0,82868.0,0.04383155]
[1743349914423,0.1873261,82869.0,82868.0,0.03168]
[1743349915723,0.1873261,82869.0,82868.0,8e-05]
[1743349915925,0.6060261,82869.0,82868.0,8e-05]
[1743349916233,0.120712,82865.0,82864.0,0.0303]
[1743349916422,0.121712,82865.0,82864.0,0.0303]
[1743349917033,0.217812,82865.0,82864.0,0.0422525]
[1743349917425,0.217812,82865.0,82864.0,0.0730525]
[1743349917827,0.217812,82865.0,82864.0,0.0736925]
[1743349918628,0.217812,82865.0,82864.0,0.0730525]
[1743349919226,0.22999632,82865.0,82864.0,0.0730525]
[1743349919535,0.217812,82865.0,82864.0,0.0730525]
[1743349920433,0.217812,82865.0,82864.0,0.0736925]
[1743349920634,0.185312,82865.0,82864.0,0.0730525]
[1743349921133,0.273872,82865.0,82864.0,0.1937659]
[1743349921322,0.273872,82865.0,82864.0,0.1944859]
[1743349922430,0.121712,82865.0,82864.0,0.1944859]
[1743349922633,0.241872,82865.0,82864.0,0.0737725]
[1743349922830,0.241872,82865.0,82864.0,0.0730525]
[1743349924439,0.241872,82865.0,82864.0,0.1937659]
[1743349924631,0.274672,82865.0,82864.0,0.1944859]
[1743349931631,0.241872,82865.0,82864.0,0.1944859]
[1743349931831,0.241832,82865.0,82864.0,0.1944859]
[1743349932049,0.001,82865.0,82864.0,0.1944859]
[1743349932233,0.241832,82865.0,82864.0,0.1944859]
[1743349932542,0.12112,82865.0,82864.0,0.1944859]
[1743349932731,0.241832,82865.0,82864.0,0.1944859]
[1743349933342,0.121712,82865.0,82864.0,0.1944859]
[1743349934239,0.121712,82865.0,82864.0,0.0737725]
[1743349934540,0.220212,82865.0,82864.0,0.0126725]
[1743349934735,0.1207149,82863.0,82862.0,0.00018099]
[1743349934933,0.1217149,82863.0,82862.0,0.00090099]
[1743349935344,0.1207192,82860.0,82859.0,0.00056274]
[1743349935637,0.12167921,82860.0,82859.0,0.00120274]
[1743349936227,0.12167921,82860.0,82859.0,0.00112274]
[1743349936633,0.12167921,82860.0,82859.0,0.01347273]
[1743349936834,0.12167921,82860.0,82859.0,0.00112274]
[1743349937946,0.12167921,82860.0,82859.0,0.0131721]
[1743349938145,0.12167921,82860.0,82859.0,0.03182274]
[1743349938735,0.12167921,82860.0,82859.0,0.00112274]
[1743349939236,0.12167921,82860.0,82859.0,0.03222274]
[1743349940436,0.12167921,82860.0,82859.0,0.03158274]
[1743349940742,0.26591838,82860.0,82859.0,0.03158274]
[1743349941043,0.26591838,82860.0,82859.0,0.00048274]
[1743349944029,0.62671838,82860.0,82859.0,0.00048274]
[1743349948246,0.48247921,82860.0,82859.0,0.00048274]
[1743349948439,0.1207251,82856.0,82855.0,8e-05]
[1743349948638,0.2417651,82856.0,82855.0,0.00064]
[1743349948932,0.2417651,82856.0,82851.0,0.00018099]
[1743349948933,0.1207309,82852.0,82851.0,0.00018099]
[1743349949134,0.4824509,82852.0,82851.0,0.00086099]
[1743349949741,0.5150509,82852.0,82851.0,0.00086099]
[1743349950337,0.5150509,82852.0,82851.0,0.03436099]
[1743349951046,0.1542509,82852.0,82851.0,0.04633115]
[1743349951242,0.5150509,82852.0,82851.0,0.04633115]
[1743349951439,0.5150509,82852.0,82851.0,0.16706355]
[1743349952341,0.39432,82852.0,82851.0,0.05633115]
[1743349953750,0.39432,82852.0,82851.0,0.05565115]
[1743349954052,0.42752,82852.0,82851.0,0.05565115]
[1743349954549,0.43752,82852.0,82851.0,0.05565115]
[1743349956542,0.43752,82852.0,82851.0,0.02215115]
[1743349958451,0.07672,82852.0,82851.0,0.02215115]
[1743349958654,0.43752,82852.0,82851.0,0.02215115]
[1743349959445,0.5582509,82852.0,82851.0,0.02215115]
[1743349962656,0.1974509,82852.0,82851.0,0.02215115]
[1743349962954,0.5582509,82852.0,82851.0,0.02215115]
[1743349963145,0.1974509,82852.0,82851.0,0.02215115]
[1743349963346,0.5582509,82852.0,82851.0,0.02215115]
[1743349971153,0.5582509,82852.0,82851.0,0.17578355]
[1743349971555,0.5582509,82852.0,82851.0,0.17678355]
[1743349971757,0.6783309,82852.0,82851.0,0.17678355]
[1743349971958,0.6783309,82852.0,82851.0,0.20798355]
[1743349973160,0.6125309,82852.0,82851.0,1.70798355]
[1743349973550,0.6125309,82852.0,82851.0,0.20798355]
[1743349974160,0.6125309,82852.0,82851.0,0.08725115]
[1743349974360,0.6450309,82852.0,82851.0,0.08725115]
[1743349974560,0.5249509,82852.0,82851.0,0.08725115]
[1743349974866,0.6450309,82852.0,82851.0,0.08725115]
[1743349975254,0.6450309,82852.0,82851.0,0.20798355]
[1743349975449,0.6450309,82852.0,82851.0,0.08725115]
[1743349975754,0.6450309,82852.0,82851.0,0.20698355]
[1743349975955,0.6450309,82852.0,82851.0,0.20762355]
[1743349977050,0.5249509,82852.0,82851.0,0.20762355]
[1743349977249,0.6450309,82852.0,82851.0,0.20762355]
[1743349979467,0.6772309,82852.0,82851.0,0.20762355]
[1743349980170,0.7083309,82852.0,82851.0,0.20762355]
[1743349981567,0.37172,82852.0,82851.0,0.20762355]
[1743349981863,0.37172,82852.0,82851.0,0.20698355]
[1743349981864,0.01092,82852.0,82851.0,0.20698355]
[1743349982162,0.01092,82852.0,82851.0,0.56842355]
[1743349982760,0.01092,82852.0,82851.0,2.06842355]
[1743349983758,0.01092,82852.0,82851.0,1.70762355]
[1743349984658,0.24017673,82852.0,82851.0,1.70762355]
[1743349984858,0.30207673,82852.0,82851.0,0.20762355]
[1743349985061,0.30207673,82852.0,82851.0,0.08689115]
[1743349985368,0.30207673,82852.0,82851.0,0.20762355]
[1743349986169,0.30207673,82852.0,82851.0,0.08689115]
[1743349987664,0.1935509,82852.0,82851.0,0.20762355]
[1743349990065,0.1935509,82852.0,82851.0,0.17472355]
[1743349991770,0.1935509,82852.0,82851.0,0.05399115]
[1743349991976,0.5543509,82852.0,82851.0,0.05399115]
[1743349992567,0.1935509,82852.0,82851.0,0.05399115]
[1743349992776,0.5543509,82852.0,82851.0,0.05399115]
[1743349993779,0.1935509,82852.0,82851.0,0.05399115]
[1743349994074,0.5543509,82852.0,82851.0,0.05399115]
[1743349994964,0.5543509,82852.0,82851.0,0.17472355]
[1743349995468,0.5543509,82852.0,82851.0,0.20642355]
[1743349998879,0.1935509,82852.0,82851.0,0.20642355]
[1743349999079,0.5543509,82852.0,82851.0,0.20642355]
[1743350000773,0.1935509,82852.0,82851.0,0.20642355]
[1743350000967,0.5543509,82852.0,82851.0,0.20642355]
[1743350002980,0.5543509,82852.0,82851.0,0.05399115]
[1743350005385,0.1935509,82852.0,82851.0,0.17472355]
[1743350005574,0.5543509,82852.0,82851.0,0.17472355]
[1743350006175,0.1935509,82852.0,82851.0,0.17472355]
[1743350006788,0.5543509,82852.0,82851.0,0.17472355]
[1743350006988,0.1935509,82852.0,82851.0,0.17472355]
[1743350007189,0.5543509,82852.0,82851.0,0.17472355]
[1743350007390,0.1935509,82852.0,82851.0,0.17472355]
[1743350007590,0.5543509,82852.0,82851.0,0.17472355]
[1743350009894,0.5543509,82852.0,82851.0,0.05399115]
[1743350012188,0.5543509,82852.0,82851.0,0.02279115]
[1743350013801,0.5543509,82852.0,82851.0,0.05499115]
[1743350014391,0.5543509,82852.0,82851.0,0.05435115]
[1743350014592,0.5543509,82852.0,82851.0,0.02215115]
[1743350016898,0.1935509,82852.0,82851.0,0.02215115]
[1743350017098,0.5543509,82852.0,82851.0,0.02215115]
[1743350017707,0.1935509,82852.0,82851.0,0.02215115]
[1743350018009,0.5543509,82852.0,82851.0,0.02215115]
[1743350018608,0.61305587,82852.0,82851.0,0.02215115]
[1743350019307,0.61305587,82852.0,82851.0,0.05275115]
[1743350020807,0.61305587,82852.0,82851.0,0.02215115]
[1743350023611,0.61305587,82852.0,82851.0,0.05345115]
[1743350025812,0.25225587,82852.0,82851.0,0.05345115]
[1743350026213,0.61305587,82852.0,82851.0,0.05345115]
[1743350027811,0.25225587,82852.0,82851.0,0.05345115]
[1743350028012,0.61305587,82852.0,82851.0,0.05345115]
[1743350028212,0.61305587,82852.0,82851.0,0.04148099]
[1743350028414,0.61305587,82852.0,82851.0,0.01018099]
[1743350029617,0.25225587,82852.0,82851.0,0.01018099]
[1743350029818,0.61305587,82852.0,82851.0,0.01018099]